lending/lending_fUSD_20250917
["ID","MTS","AMOUNT","RATE_DAILY","PERIOD"]
[385934922,1758137466986,-445.8865201,0.00023012,2]
[385934923,1758137466995,-400.0,0.00023012,2]
[385934924,1758137467004,-400.0,0.00023012,2]
[385934925,1758137467013,-400.0,0.00023012,2]
[385934926,1758137467023,-400.0,0.00023012,2]
[385934927,1758137467032,-400.0,0.00023012,2]
[385934928,1758137467041,-400.0,0.00023012,2]
[385934929,1758137467050,-400.0,0.00023012,2]
[385934930,1758137467059,-438.33969406,0.00023012,2]
[385934931,1758137467068,-400.0,0.00023012,2]
[385934932,1758137467077,-400.0,0.00023012,2]
[385934933,1758137467087,-373.69152926,0.00023012,2]
[385934934,1758137467097,-400.0,0.00023012,2]
[385934935,1758137467106,-400.0,0.00023012,2]
[385934936,1758137467116,-379.63394341,0.00023012,2]
[385934937,1758137467125,-400.0,0.00023012,2]
[385934938,1758137467134,-400.0,0.00023012,2]
[385934939,1758137467145,-400.0,0.00023012,2]
[385934940,1758137467154,-400.0,0.00023012,2]
[385934941,1758137467165,-400.0,0.00023012,2]
[385934942,1758137467176,-400.0,0.00023012,2]
[385934943,1758137467185,-400.0,0.00023012,2]
[385934944,1758137467198,-400.0,0.00023012,2]
[385934945,1758137467207,-464.39,0.00023012,2]
[385934946,1758137467217,-400.0,0.00023012,2]
[385934947,1758137467227,-427.47,0.00023012,2]
[385934948,1758137467237,-400.0,0.00023012,2]
[385934949,1758137467246,-400.0,0.00023012,2]
[385934950,1758137467256,-400.0,0.00023012,2]
[385934951,1758137467265,-400.0,0.00023012,2]
[385934952,1758137467275,-400.0,0.00023012,2]
[385934953,1758137467285,-400.0,0.00023012,2]
[385934954,1758137467294,-400.0,0.00023012,2]
[385934955,1758137467303,-400.0,0.00023013,2]
[385934956,1758137467313,-400.0,0.00023013,2]
[385934957,1758137467324,-400.0,0.00023013,2]
[385934958,1758137467334,-602.7,0.00023013,2]
[385934959,1758137467345,-400.0,0.00023013,2]
[385934960,1758137467354,-435.38,0.00023013,2]
[385934961,1758137467363,-400.0,0.00023013,2]
[385934962,1758137467372,-400.0,0.00023013,2]
[385934963,1758137467382,-400.0,0.00023013,2]
[385934964,1758137467391,-400.0,0.00023013,2]
[385934965,1758137467400,-400.0,0.00023013,2]
[385934966,1758137467410,-400.0,0.00023013,2]
[385934967,1758137467419,-400.0,0.00023013,2]
[385934968,1758137467428,-3002.02,0.00023013,2]
[385934969,1758137467438,-400.0,0.00023013,2]
[385934970,1758137467449,-400.0,0.00023013,2]
[385934971,1758137467459,-400.0,0.00023013,2]
[385934972,1758137467468,-400.0,0.00023013,2]
[385934973,1758137467477,-400.0,0.00023013,2]
[385934974,1758137467486,-400.0,0.00023013,2]
[385934975,1758137467495,-400.0,0.00023013,2]
[385934976,1758137467504,-400.0,0.00023013,2]
[385934977,1758137467514,-400.0,0.00023013,2]
[385934978,1758137467523,-400.0,0.00023013,2]
[385934979,1758137467532,-400.0,0.00023013,2]
[385934980,1758137467541,-400.0,0.00023013,2]
[385934981,1758137467551,-400.0,0.00023013,2]
[385934982,1758137467560,-400.0,0.00023013,2]
[385934983,1758137467569,-450.53,0.00023013,2]
[385934984,1758137467578,-400.0,0.00023013,2]
[385934985,1758137467587,-400.0,0.00023013,2]
[385934986,1758137467597,-400.0,0.00023013,2]
[385934987,1758137467606,-400.0,0.00023013,2]
[385934988,1758137467615,-400.0,0.00023013,2]
[385934989,1758137467624,-400.0,0.00023013,2]
[385934990,1758137467633,-403.85,0.00023013,2]
[385934991,1758137467642,-531.56,0.00023013,2]
[385934992,1758137467652,-747.86,0.00023013,2]
[385934993,1758137467662,-671.74,0.00023013,2]
[385934994,1758137467674,-439.4584462,0.00023013,2]
[385934995,1758137467684,-400.0,0.00023013,2]
[385934996,1758137467695,-400.0,0.00023013,2]
[385934997,1758137467705,-400.0,0.00023013,2]
[385934998,1758137467714,-400.0,0.00023013,2]
[385934999,1758137467724,-3263.67,0.00023013,2]
[385935000,1758137467733,-400.0,0.00023013,2]
[385935001,1758137467742,-493.88,0.00023013,2]
[385935002,1758137467751,-568.43,0.00023013,2]
[385935003,1758137467760,-400.0,0.00023013,2]
[385935004,1758137467769,-400.0,0.00023013,2]
[385935005,1758137467778,-454.87,0.00023013,2]
[385935006,1758137467788,-400.0,0.00023013,2]
[385935007,1758137467797,-427.05,0.00023013,2]
[385935008,1758137467806,-400.0,0.00023013,2]
[385935009,1758137467815,-400.0,0.00023013,2]
[385935010,1758137467828,-688.11,0.00023013,2]
[385935011,1758137467838,-461.23,0.00023013,2]
[385935012,1758137467847,-400.0,0.00023013,2]
[385935013,1758137467856,-445.65,0.00023013,2]
[385935014,1758137467866,-569.96,0.00023013,2]
[385935015,1758137467875,-441.98,0.00023013,2]
[385935016,1758137467884,-400.0,0.00023013,2]
[385935017,1758137467894,-454.48,0.00023013,2]
[385935018,1758137467903,-463.35,0.00023013,2]
[385935019,1758137467912,-400.0,0.00023013,2]
[385935020,1758137467921,-400.0,0.00023013,2]
[385935021,1758137467931,-492.3,0.00023013,2]
[385935022,1758137467941,-677.36,0.00023013,2]
[385935023,1758137467950,-400.0,0.00023013,2]
[385935024,1758137467959,-400.0,0.00023013,2]
[385935025,1758137467969,-413.4,0.00023013,2]
[385935026,1758137467978,-400.0,0.00023013,2]
[385935027,1758137467987,-796.26,0.00023013,2]
[385935028,1758137467996,-400.0,0.00023013,2]
[385935029,1758137468007,-400.0,0.00023013,2]
[385935030,1758137468018,-151.0,0.00023013,7]
[385935031,1758137468028,-2727.12,0.00023013,2]
[385935032,1758137468038,-400.0,0.00023013,2]
[385935033,1758137468048,-518.36,0.00023013,2]
[385935034,1758137468059,-400.0,0.00023013,2]
[385935035,1758137468069,-469.33,0.00023013,2]
[385935036,1758137468078,-400.0,0.00023013,2]
[385935037,1758137468087,-400.0,0.00023013,2]
[385935038,1758137468097,-400.0,0.00023013,2]
[385935039,1758137468106,-400.0,0.00023013,2]
[385935040,1758137468116,-400.0,0.00023013,2]
[385935041,1758137468125,-400.0,0.00023013,2]
[385935042,1758137468134,-400.0,0.00023013,2]
[385935043,1758137468143,-586.66,0.00023013,2]
[385935044,1758137468153,-430.47,0.00023013,2]
[385935045,1758137468163,-400.0,0.00023013,2]
[385935046,1758137468172,-400.0,0.00023013,2]
[385935047,1758137468182,-1000.0,0.00023021,2]
[385935048,1758137468193,-513.44380771,0.00023073,2]
[385935049,1758137468202,-1000.0,0.00023093,2]
[385935050,1758137468211,-400.0,0.00023094,2]
[385935051,1758137468220,-220.66395099,0.00023094,2]
[385935052,1758137468229,-400.0,0.00023094,2]
[385935053,1758137468239,-400.0,0.00023094,2]
[385935054,1758137468247,-400.0,0.00023094,2]
[385935055,1758137468256,-575.48,0.00023094,2]
[385935056,1758137468265,-400.0,0.00023094,2]
[385935057,1758137468274,-400.0,0.00023094,2]
[385935058,1758137468283,-765.76,0.00023094,2]
[385935059,1758137468292,-400.0,0.00023094,2]
[385935060,1758137468301,-400.0,0.00023094,2]
[385935061,1758137468310,-400.0,0.00023094,2]
[385935062,1758137468319,-400.0,0.00023094,2]
[385935063,1758137468329,-177.139291,0.00023094,2]
[385935064,1758137468338,-244.040939,0.00023094,2]
[385935065,1758137468347,-386.251879,0.00023094,2]
[385935066,1758137468357,-1073.87,0.00023094,2]
[385935067,1758137468366,-400.0,0.00023094,2]
[385935068,1758137468375,-535.0,0.00023094,2]
[385935069,1758137468384,-459.71,0.00023094,2]
[385935070,1758137468393,-400.0,0.00023094,2]
[385935071,1758137468402,-400.0,0.00023094,2]
[385935072,1758137468411,-400.0,0.00023094,2]
[385935073,1758137468421,-400.0,0.00023094,2]
[385935074,1758137468430,-542.92,0.00023094,2]
[385935075,1758137468439,-400.0,0.00023094,2]
[385935076,1758137468449,-538.28,0.00023094,2]
[385935077,1758137468458,-400.0,0.00023094,2]
[385935078,1758137468468,-400.0,0.00023094,2]
[385935079,1758137468477,-476.01,0.00023094,2]
[385935080,1758137468487,-400.0,0.00023094,2]
[385935081,1758137468496,-1008.77,0.00023094,2]
[385935082,1758137468504,-400.0,0.00023094,2]
[385935083,1758137468514,-763.58,0.00023094,2]
[385935084,1758137468523,-400.0,0.00023094,2]
[385935085,1758137468533,-400.0,0.00023094,2]
[385935086,1758137468543,-400.0,0.00023094,2]
[385935087,1758137468552,-400.0,0.00023094,2]
[385935088,1758137468562,-1279.58,0.00023094,2]
[385935089,1758137468572,-449.94,0.00023094,2]
[385935090,1758137468581,-435.9,0.00023094,2]
[385935091,1758137468592,-476.42828286,0.00023094,2]
[385935092,1758137468601,-400.0,0.00023094,2]
[385935093,1758137468610,-505.47,0.00023094,2]
[385935094,1758137468620,-551.94,0.00023094,2]
[385935095,1758137468631,-400.0,0.00023094,2]
[385935096,1758137468640,-400.0,0.00023094,2]
[385935097,1758137468651,-400.0,0.00023094,2]
[385935098,1758137468661,-400.0,0.00023094,2]
[385935099,1758137468670,-400.0,0.00023094,2]
[385935100,1758137468679,-542.84,0.00023094,2]
[385935101,1758137468688,-400.0,0.00023094,2]
[385935102,1758137468699,-565.74,0.00023094,2]
[385935103,1758137468708,-400.0,0.00023094,2]
[385935104,1758137468718,-400.0,0.00023094,2]
[385935105,1758137468727,-461.5,0.00023094,2]
[385935106,1758137468736,-461.19544512,0.00023094,2]
[385935107,1758137468746,-400.0,0.00023094,2]
[385935108,1758137468754,-728.72,0.00023094,2]
[385935109,1758137468765,-1073.76,0.00023094,2]
[385935110,1758137468774,-400.0,0.00023094,2]
[385935111,1758137468783,-400.0,0.00023094,2]
[385935112,1758137468792,-400.0,0.00023094,2]
[385935113,1758137468803,-400.0,0.00023094,2]
[385935114,1758137468813,-455.35,0.00023094,2]
[385935115,1758137468830,-400.0,0.00023094,2]
[385935116,1758137468841,-1019.68,0.00023094,2]
[385935117,1758137468851,-511.63,0.00023094,2]
[385935118,1758137468863,-972.93,0.00023094,2]
[385935119,1758137468873,-400.0,0.00023094,2]
[385935120,1758137468882,-1906.2,0.00023094,2]
[385935121,1758137468891,-400.0,0.00023094,2]
[385935122,1758137468902,-400.0,0.00023094,2]
[385935123,1758137468911,-400.0,0.00023094,2]
[385935124,1758137468923,-7460.96,0.00023094,2]
[385935125,1758137468934,-400.0,0.00023094,2]
[385935126,1758137468945,-400.0,0.00023094,2]
[385935127,1758137468954,-400.0,0.00023094,2]
[385935128,1758137468963,-3359.33,0.00023094,2]
[385935129,1758137468974,-400.0,0.00023094,2]
[385935130,1758137468983,-485.76,0.00023094,2]
[385935131,1758137468992,-400.0,0.00023095,2]
[385935132,1758137469001,-400.0,0.00023095,2]
[385935133,1758137469010,-400.0,0.00023095,2]
[385935134,1758137469020,-400.0,0.00023095,2]
[385935135,1758137469030,-499.98,0.00023095,2]
[385935136,1758137469039,-554.96,0.00023095,2]
[385935137,1758137469048,-400.0,0.00023095,2]
[385935138,1758137469057,-400.0,0.00023095,2]
[385935139,1758137469066,-400.0,0.00023095,2]
[385935140,1758137469075,-400.0,0.00023095,2]
[385935141,1758137469084,-400.0,0.00023095,2]
[385935142,1758137469093,-400.0,0.00023095,2]
[385935143,1758137469103,-400.0,0.00023095,2]
[385935144,1758137469113,-400.0,0.00023095,2]
[385935145,1758137469122,-400.0,0.00023095,2]
[385935146,1758137469132,-400.0,0.00023095,2]
[385935147,1758137469141,-400.0,0.00023095,2]
[385935148,1758137469151,-400.0,0.00023095,2]
[385935149,1758137469160,-400.0,0.00023095,2]
[385935150,1758137469170,-400.0,0.00023095,2]
[385935151,1758137469179,-400.0,0.00023095,2]
[385935152,1758137469188,-400.0,0.00023095,2]
[385935153,1758137469199,-400.0,0.00023095,2]
[385935154,1758137469209,-400.0,0.00023095,2]
[385935155,1758137469218,-400.0,0.00023095,2]
[385935156,1758137469228,-217.48650531,0.00023095,2]
[385935157,1758137469237,-400.0,0.00023095,2]
[385935158,1758137469245,-400.0,0.00023095,2]
[385935159,1758137469255,-400.0,0.00023095,2]
[385935160,1758137469264,-400.0,0.00023095,2]
[385935161,1758137469274,-400.0,0.00023095,2]
[385935162,1758137469284,-400.0,0.00023095,2]
[385935163,1758137469293,-400.0,0.00023095,2]
[385935164,1758137469302,-400.0,0.00023095,2]
[385935165,1758137469311,-407.98822869,0.00023095,2]
[385935166,1758137469320,-422.78,0.00023095,2]
[385935167,1758137469330,-400.0,0.00023095,2]
[385935168,1758137469339,-711.68,0.00023095,2]
[385935169,1758137469349,-501.32,0.00023095,2]
[385935170,1758137469359,-400.0,0.00023095,2]
[385935171,1758137469369,-400.0,0.00023095,2]
[385935172,1758137469377,-400.0,0.00023095,2]
[385935173,1758137469386,-400.0,0.00023095,2]
[385935174,1758137469395,-400.0,0.00023095,2]
[385935175,1758137469405,-400.0,0.00023095,2]
[385935176,1758137469414,-468.16230068,0.00023095,2]
[385935177,1758137469424,-437.82,0.00023095,2]
[385935178,1758137469433,-400.0,0.00023095,2]
[385935179,1758137469445,-400.0,0.00023095,2]
[385935180,1758137469454,-400.0,0.00023095,2]
[385935181,1758137469463,-400.0,0.00023095,2]
[385935182,1758137469563,-400.0,0.00023095,2]
[385935183,1758137469580,-400.0,0.00023095,2]
[385935184,1758137469590,-400.0,0.00023095,2]
[385935185,1758137469600,-400.0,0.00023095,2]
[385935186,1758137469612,-400.0,0.00023095,2]
[385935187,1758137469623,-468.8,0.00023095,2]
[385935188,1758137469634,-400.0,0.00023095,2]
[385935189,1758137469644,-939.92,0.00023095,2]
[385935190,1758137469653,-400.0,0.00023095,2]
[385935191,1758137469663,-462.35,0.00023095,2]
[385935192,1758137469672,-151.0,0.00023095,7]
[385935193,1758137469681,-1108.83,0.00023095,2]
[385935194,1758137469690,-587.56,0.00023095,2]
[385935195,1758137469700,-820.14,0.00023095,2]
[385935196,1758137469710,-1781.73,0.00023095,2]
[385935197,1758137469719,-564.62,0.00023095,2]
[385935198,1758137469729,-400.0,0.00023095,2]
[385935199,1758137469739,-400.0,0.00023095,2]
[385935200,1758137469749,-454.8,0.00023095,2]
[385935201,1758137469759,-400.0,0.00023095,2]
[385935202,1758137469769,-400.0,0.00023095,2]
[385935203,1758137469779,-419.62,0.00023095,2]
[385935204,1758137469789,-514.56,0.00023095,2]
[385935205,1758137469799,-471.22,0.00023095,2]
[385935206,1758137469808,-443.87,0.00023095,2]
[385935207,1758137469819,-719.15,0.00023095,2]
[385935208,1758137469829,-546.46,0.00023095,2]
[385935209,1758137469839,-411.01,0.00023095,2]
[385935210,1758137469848,-400.0,0.00023095,2]
[385935211,1758137469857,-769.33,0.00023095,2]
[385935212,1758137469867,-450.77,0.00023095,2]
[385935213,1758137469877,-1734.54,0.00023095,2]
[385935214,1758137469886,-538.08,0.00023095,2]
[385935215,1758137469896,-1923.29,0.00023095,2]
[385935216,1758137469906,-400.0,0.00023095,2]
[385935217,1758137469916,-411.58,0.00023095,2]
[385935218,1758137469925,-431.89,0.00023095,2]
[385935219,1758137469935,-733.95,0.00023095,2]
[385935220,1758137469946,-400.0,0.00023095,2]
[385935221,1758137469956,-3546.51,0.00023095,2]
[385935222,1758137469966,-935.65,0.00023095,2]
[385935223,1758137469975,-957.93,0.00023095,2]
[385935224,1758137469985,-400.0,0.00023095,2]
[385935225,1758137469995,-405.32,0.00023095,2]
[385935226,1758137470005,-489.76,0.00023095,2]
[385935227,1758137470015,-535.24,0.00023095,2]
[385935228,1758137470024,-400.0,0.00023095,2]
[385935229,1758137470034,-491.18,0.00023095,2]
[385935230,1758137470043,-780.29,0.00023095,2]
[385935231,1758137470053,-400.0,0.00023095,2]
[385935232,1758137470062,-647.97,0.00023095,2]
[385935233,1758137470071,-1559.37,0.00023095,2]
[385935234,1758137470081,-769.68,0.00023095,2]
[385935235,1758137470091,-737.61,0.00023095,2]
[385935236,1758137470100,-568.29,0.00023095,2]
[385935237,1758137470110,-976.6,0.00023095,2]
[385935238,1758137470119,-777.44,0.00023095,2]
[385935239,1758137470129,-876.26,0.00023095,2]
[385935240,1758137470138,-513.48,0.00023095,2]
[385935241,1758137470148,-680.77,0.00023095,2]
[385935242,1758137470157,-492.09,0.00023095,2]
[385935243,1758137470166,-883.58,0.00023095,2]
[385935244,1758137470176,-400.0,0.00023095,2]
[385935245,1758137470186,-400.0,0.00023095,2]
[385935246,1758137470197,-512.24,0.00023095,2]
[385935247,1758137470207,-400.0,0.00023095,2]
[385935248,1758137470218,-3218.82,0.00023095,2]
[385935249,1758137470227,-168.0,0.00023175,2]
[385935250,1758137470237,-1000.0,0.00023199,2]
[385935251,1758137470247,-400.0,0.00023267,2]
[385935252,1758137470256,-400.0,0.00023268,2]
[385935253,1758137470265,-400.0,0.00023268,2]
[385935254,1758137470275,-400.0,0.00023268,2]
[385935255,1758137470285,-400.0,0.00023268,2]
[385935256,1758137470294,-400.0,0.00023268,2]
[385935257,1758137470303,-400.0,0.00023268,2]
[385935258,1758137470312,-488.59,0.00023268,2]
[385935259,1758137470321,-400.0,0.00023268,2]
[385935260,1758137470330,-400.0,0.00023268,2]
[385935261,1758137470340,-400.0,0.00023268,2]
[385935262,1758137470349,-400.0,0.00023268,2]
[385935263,1758137470359,-435.76,0.00023268,2]
[385935264,1758137470368,-400.0,0.00023268,2]
[385935265,1758137470378,-400.0,0.00023268,2]
[385935266,1758137470387,-400.0,0.00023268,2]
[385935267,1758137470397,-400.0,0.00023268,2]
[385935268,1758137470407,-400.0,0.00023268,2]
[385935269,1758137470416,-400.0,0.00023268,2]
[385935270,1758137470426,-400.0,0.00023268,2]
[385935271,1758137470435,-400.0,0.00023268,2]
[385935272,1758137470447,-400.0,0.00023268,2]
[385935273,1758137470456,-400.0,0.00023268,2]
[385935274,1758137470466,-415.91,0.00023268,2]
[385935275,1758137470476,-400.0,0.00023268,2]
[385935276,1758137470485,-400.0,0.00023268,2]
[385935277,1758137470494,-400.0,0.00023268,2]
[385935278,1758137470503,-400.0,0.00023268,2]
[385935279,1758137470512,-400.0,0.00023268,2]
[385935280,1758137470522,-400.0,0.00023268,2]
[385935281,1758137470531,-400.0,0.00023268,2]
[385935282,1758137470540,-400.0,0.00023268,2]
[385935283,1758137470550,-400.0,0.00023268,2]
[385935284,1758137470559,-400.0,0.00023268,2]
[385935285,1758137470569,-400.0,0.00023268,2]
[385935286,1758137470578,-400.0,0.00023268,2]
[385935287,1758137470587,-400.0,0.00023268,2]
[385935288,1758137470597,-400.0,0.00023268,2]
[385935289,1758137470606,-400.0,0.00023268,2]
[385935290,1758137470615,-400.0,0.00023268,2]
[385935291,1758137470625,-400.0,0.00023268,2]
[385935292,1758137470634,-612.38,0.00023268,2]
[385935293,1758137470644,-400.0,0.00023268,2]
[385935294,1758137470653,-431.7,0.00023268,2]
[385935295,1758137470663,-400.0,0.00023268,2]
[385935296,1758137470672,-430.28,0.00023268,2]
[385935297,1758137470682,-400.0,0.00023268,2]
[385935298,1758137470691,-400.0,0.00023268,2]
[385935299,1758137470702,-400.0,0.00023268,2]
[385935300,1758137470711,-400.0,0.00023268,2]
[385935301,1758137470721,-400.0,0.00023268,2]
[385935302,1758137470731,-400.0,0.00023268,2]
[385935303,1758137470740,-400.0,0.00023268,2]
[385935304,1758137470750,-400.0,0.00023268,2]
[385935305,1758137470760,-400.0,0.00023268,2]
[385935306,1758137470770,-400.0,0.00023268,2]
[385935307,1758137470779,-400.0,0.00023268,2]
[385935308,1758137470789,-400.0,0.00023268,2]
[385935309,1758137470798,-400.0,0.00023268,2]
[385935310,1758137470808,-441.41,0.00023268,2]
[385935311,1758137470818,-691.27,0.00023268,2]
[385935312,1758137470830,-708.66,0.00023268,2]
[385935313,1758137470839,-400.0,0.00023268,2]
[385935314,1758137470851,-652.09,0.00023268,2]
[385935315,1758137470862,-568.38,0.00023268,2]
[385935316,1758137470873,-400.0,0.00023268,2]
[385935317,1758137470882,-400.0,0.00023268,2]
[385935318,1758137470894,-421.69,0.00023268,2]
[385935319,1758137470905,-400.0,0.00023268,2]
[385935320,1758137470915,-400.0,0.00023268,2]
[385935321,1758137470925,-378.81328923,0.00023268,2]
[385935322,1758137470934,-400.0,0.00023268,2]
[385935323,1758137470944,-400.0,0.00023268,2]
[385935324,1758137470953,-400.0,0.00023268,2]
[385935325,1758137470963,-1074.46,0.00023268,2]
[385935326,1758137470973,-400.0,0.00023268,2]
[385935327,1758137470984,-418.61,0.00023268,2]
[385935328,1758137470994,-400.0,0.00023268,2]
[385935329,1758137471003,-868.64,0.00023268,2]
[385935330,1758137471012,-400.0,0.00023268,2]
[385935331,1758137471022,-400.0,0.00023268,2]
[385935332,1758137471032,-433.88,0.00023268,2]
[385935333,1758137471042,-467.4,0.00023268,2]
[385935334,1758137471051,-400.0,0.00023268,2]
[385935335,1758137471060,-400.0,0.00023268,2]
[385935336,1758137471070,-1017.1,0.00023268,2]
[385935337,1758137471079,-613.41,0.00023268,2]
[385935338,1758137471088,-400.0,0.00023268,2]
[385935339,1758137471098,-1761.46,0.00023268,2]
[385935340,1758137471107,-480.39,0.00023268,2]
[385935341,1758137471116,-400.0,0.00023268,2]
[385935342,1758137471125,-400.0,0.00023268,2]
[385935343,1758137471134,-400.0,0.00023268,2]
[385935344,1758137471143,-400.0,0.00023268,2]
[385935345,1758137471153,-1821.95,0.00023268,2]
[385935346,1758137471162,-400.0,0.00023268,2]
[385935347,1758137471172,-400.0,0.00023286,2]
[385935348,1758137471181,-400.0,0.00023286,2]
[385935349,1758137471193,-400.0,0.00023286,2]
[385935350,1758137471203,-400.0,0.00023286,2]
[385935351,1758137471212,-400.0,0.00023286,2]
[385935352,1758137471222,-400.0,0.00023286,2]
[385935353,1758137471231,-400.0,0.00023286,2]
[385935354,1758137471241,-400.0,0.00023286,2]
[385935355,1758137471251,-400.0,0.00023286,2]
[385935356,1758137471261,-400.0,0.00023286,2]
[385935357,1758137471270,-400.0,0.00023286,2]
[385935358,1758137471280,-400.0,0.00023286,2]
[385935359,1758137471289,-400.0,0.00023286,2]
[385935360,1758137471299,-400.0,0.00023286,2]
[385935361,1758137471311,-506.83,0.00023286,2]
[385935362,1758137471322,-400.0,0.00023286,2]
[385935363,1758137471334,-400.0,0.00023286,2]
[385935364,1758137471344,-400.0,0.00023286,2]
[385935365,1758137471353,-400.0,0.00023286,2]
[385935366,1758137471363,-400.0,0.00023286,2]
[385935367,1758137471372,-400.0,0.00023286,2]
[385935368,1758137471382,-400.0,0.00023286,2]
[385935369,1758137471391,-400.0,0.00023286,2]
[385935370,1758137471400,-400.0,0.00023286,2]
[385935371,1758137471410,-324.07931929,0.00023286,2]
[385935372,1758137471419,-242.43850767,0.00023286,2]
[385935373,1758137471428,-390.83,0.00023286,2]
[385935374,1758137471438,-400.0,0.00023286,2]
[385935375,1758137471450,-400.0,0.00023286,2]
[385935376,1758137471459,-400.0,0.00023286,2]
[385935377,1758137471469,-400.0,0.00023286,2]
[385935378,1758137471478,-400.0,0.00023286,2]
[385935379,1758137471488,-400.0,0.00023286,2]
[385935380,1758137471498,-400.0,0.00023286,2]
[385935381,1758137471507,-400.0,0.00023286,2]
[385935382,1758137471516,-400.0,0.00023286,2]
[385935383,1758137471525,-400.0,0.00023286,2]
[385935384,1758137471536,-188.30024837,0.00023286,2]
[385935385,1758137471546,-400.0,0.00023286,2]
[385935386,1758137471555,-400.0,0.00023286,2]
[385935387,1758137471565,-463.63613478,0.00023286,2]
[385935388,1758137471574,-400.0,0.00023286,2]
[385935389,1758137471583,-400.0,0.00023286,2]
[385935390,1758137471593,-355.15613059,0.00023286,2]
[385935391,1758137471602,-400.0,0.00023286,2]
[385935392,1758137471611,-400.0,0.00023286,2]
[385935393,1758137471622,-400.0,0.00023286,2]
[385935394,1758137471631,-400.0,0.00023286,2]
[385935395,1758137471642,-400.0,0.00023286,2]
[385935396,1758137471651,-400.0,0.00023286,2]
[385935397,1758137471662,-400.0,0.00023286,2]
[385935398,1758137471671,-400.0,0.00023286,2]
[385935399,1758137471681,-400.0,0.00023286,2]
[385935400,1758137471690,-239.5650805,0.00023286,2]
[385935401,1758137472006,-400.0,0.00023286,2]
[385935402,1758137472017,-400.0,0.00023286,2]
[385935403,1758137472028,-400.0,0.00023286,2]
[385935404,1758137472038,-400.0,0.00023286,2]
[385935405,1758137472048,-400.0,0.00023286,2]
[385935406,1758137472058,-400.0,0.00023286,2]
[385935407,1758137472068,-400.0,0.00023286,2]
[385935408,1758137472080,-400.0,0.00023286,2]
[385935409,1758137472089,-400.0,0.00023286,2]
[385935410,1758137472099,-400.0,0.00023286,2]
[385935411,1758137472109,-400.0,0.00023286,2]
[385935412,1758137472118,-980.45,0.00023286,2]
[385935413,1758137472128,-400.0,0.00023286,2]
[385935414,1758137472139,-400.0,0.00023286,2]
[385935415,1758137472148,-400.0,0.00023286,2]
[385935416,1758137472158,-400.0,0.00023286,2]
[385935417,1758137472168,-400.0,0.00023286,2]
[385935418,1758137472178,-400.0,0.00023286,2]
[385935419,1758137472187,-400.0,0.00023286,2]
[385935420,1758137472199,-400.0,0.00023286,2]
[385935421,1758137472209,-400.0,0.00023286,2]